Workbook

Sheet Sheet1
F1: TERRACE
A2: UNIT # | B2: TYPE | C2: MNTHLY | D2: YRLY | E2: AC SF | F2: & BALCONIES | G2: TOTAL | H2: ADJUSTED | I2: $ p foot | J2: LEVEL | K2: FEATURE
A3: 103 | B3: 3B-1 | C3: 2800 | D3: =SUM(C3*12) -> 33600 | E3: 1552 | F3: 496 | G3: =E3+F3 -> 2048 | H3: =(F3/3)+E3 -> 1717.333333 | I3: =SUM(C3/H3) -> 1.630434783 | J3: 1 | K3: BLDG 1 LARGE WINDOWS ON 1ST & 2ND FL LARGEST UNIT WITH LARGE PRIVATE PATIO W ARTIFICIAL GRASS
A4: 102 | B4: 3B-2 | C4: 2750 | D4: =SUM(C4*12) -> 33000 | E4: 1475 | F4: 175 | G4: =E4+F4 -> 1650 | H4: =(F4/3)+E4 -> 1533.333333 | I4: =SUM(C4/H4) -> 1.793478261 | J4: 3 | K4: BLDG 1 LARGE WINODWS ON 1ST & 2ND FL DOUBLE MASTER BEDROOM
A5: 109 | B5: 3B-5 | C5: 2775 | D5: 33300 | E5: 1520 | F5: 280 | G5: =E5+F5 -> 1800 | H5: =(F5/3)+E5 -> 1613.333333 | I5: 1.720041322 | J5: 3 | K5: DOUBLE MASTER BEDROOM
A6: 104 | B6: 3B-4 | C6: 2600 | D6: 31200 | E6: 1535 | F6: 280 | G6: 1815 | H6: 1628.333333 | I6: 1.596724667 | J6: 3 | K6: DOUBLE MASTER BEDROOM
A7: 111 | B7: 3B-2 | C7: 3060 | D7: 36720 | E7: 1475 | F7: 267 | G7: 1742 | H7: 1564 | I7: 1.956521739 | J7: 2 | K7: DOUBLE MASTER BEDROOM & PRIVATE TERRAACE W ARTIFICIAL GRASS
A8: 110 | B8: 3B-1 | D8: 0 | E8: 1377 | F8: 303 | G8: 1680 | H8: 1478 | I8: 0 | J8: 4 | K8: CORNER UNIT W PRIVATE TERRACE & ARTIFICIAL GRASS
A9: 112 | B9: 3B-1 | C9: 2950 | D9: 35400 | E9: 1377 | F9: 267 | G9: 1644 | H9: 1466 | I9: 2.012278308 | J9: 5 | K9: PRIVATE TERRACE W ARTIFICIAL GRASS
A10: 114 | B10: 3B-1 | C10: 2750 | D10: 33000 | E10: 1377 | F10: 267 | G10: 1644 | H10: 1466 | I10: =C10/H10 -> 1.87585266 | J10: 5 | K10: PRIVATE TERRACE W ARTIFICIAL GRASS
A11: 115 | B11: 3B-1 | C11: 3010 | D11: 36120 | E11: 1377 | F11: 267 | G11: 1644 | H11: 1466 | I11: =SUM(C11/H11) -> 2.053206003 | J11: 4 | K11: CORNER UNIT W PRIVATE TERRACE & ARTIFICIAL GRASS
A12: 101 | B12: 3B-3 | C12: 2813 | D12: 33756 | E12: 1377 | F12: 351 | G12: 1728 | H12: 1494 | I12: =SUM(C12/H12) -> 1.882864793 | J12: 6 | K12: BLDG 1 LARGE WINDOWS ON 1ST & 2ND FL
A13: 113 | B13: 3B-1 | C13: 2950 | D13: 35400 | E13: 1377 | F13: 267 | G13: 1644 | H13: 1466 | I13: 2.012278308 | J13: 5 | K13: PRIVATE TERRACE W ARTIFICIAL GRASS
A14: 105 | B14: 3B-1 | C14: 2700 | D14: 32400 | E14: 1377 | F14: 280 | G14: 1657 | H14: 1470.333333 | I14: 1.836318295 | J14: 6 | K14: SEMI-PRIVATE TERRACE W GREEN AREA BEHIND
A15: 106 | B15: 3B-1 | C15: 2500 | D15: 30000 | E15: 1377 | F15: 238 | G15: 1615 | H15: 1456.333333 | I15: 1.716639963 | J15: 6 | K15: SEMI-PRIVATE TERRACE W GREEN AREA BEHIND
A16: 107 | B16: 3B-1 | C16: 2700 | D16: 32400 | E16: 1377 | F16: 238 | G16: 1615 | H16: 1456.333333 | I16: 1.85397116 | J16: 6 | K16: SEMI-PRIVATE TERRACE W GREEN AREA BEHIND
A17: 108 | B17: 3B-1 | C17: 2800 | D17: 33600 | E17: 1377 | F17: 280 | G17: 1657 | H17: 1470.333333 | I17: 1.904330084 | J17: 6 | K17: SEMI-PRIVATE TERRACE W GREEN AREA BEHIND
C19: =SUM(C3:C17) -> 39158 | D19: =SUM(D3:D17) -> 469896 | I19: =AVERAGE(I3:I17) -> 1.722996023
B23: For Analysis Only-Information is not warranted, Buyer's Due Diligence Required
B25: Rented
B26: In Process
B27: Vacant

Sheet Sheet2
A1: BUILDING SQ. FT. | B1: 21253 | C1: CURRENT YEAR | E1: proposed
A2: TATOL LAND SQ. FT. | B2: 36155
A3: TOTAL YEARLY | C3: =Sheet1!D19 -> 469896 | D3: TOTAL YEARLY
A4: EXPENSES | C4: =C20 -> 113962.31
A5: PURCHASE PRICE | C5: 6000000 | D5: NOI
A7: EXPENSES
A8: VACANCY | B8: Projected 5% | D8: =C21/C5 -> 0.05932228167
A9: SALES TAX
A10: ADJ PROPERTY TAX | C10: 58542
A11: INSURANCE | C11: 19146.55
A12: MANGEMENT | C12: =C3*5% -> 23494.8
A13: LEGAL FEES | C13: 0
A14: PARKING LOT | C14: 0
A15: Landscape | C15: 5890
A16: WASTE EXP | C16: 1200
A17: ELECTRIC | C17: 990
A18: RESERVES | C18: =C3*1% -> 4698.96
A19: LEASING FEES | C19: 0
A20: OPERATING EXPENSES | C20: =SUM(C8:C19) -> 113962.31
A21: NOI | C21: =(C3-C20) -> 355933.69
B26: For Analysis Only-Information is not warranted, Buyer's Due Diligence Required
